fUST/lending_fUST_20240930
["ID","MTS","AMOUNT","RATE_DAILY","PERIOD"]
[339562601,1727695845899,-500.0,0.00013698,2]
[339562602,1727695845907,-500.0,0.00013698,2]
[339562603,1727695845916,-526.97945769,0.00013698,2]
[339562604,1727695845926,-500.0,0.00013698,2]
[339562605,1727695845935,-511.91481008,0.00013698,2]
[339562606,1727695845944,-500.0,0.00013698,2]
[339562607,1727695845953,-500.0,0.00013698,2]
[339562608,1727695845963,-1394.58,0.00013698,2]
[339562609,1727695845972,-500.0,0.00013698,2]
[339562610,1727695845981,-500.0,0.00013698,2]
[339562611,1727695845990,-500.0,0.00013698,2]
[339562612,1727695845999,-500.0,0.00013698,2]
[339562613,1727695846009,-500.0,0.00013698,2]
[339562614,1727695846018,-500.0,0.00013698,2]
[339562615,1727695846027,-688.87,0.00013698,2]
[339562616,1727695846037,-507.84054313,0.00013698,2]
[339562618,1727695846048,-500.0,0.00013698,2]
[339562619,1727695846057,-500.0,0.00013698,2]
[339562620,1727695846066,-500.0,0.00013698,2]
[339562621,1727695846076,-891.03,0.00013698,2]
[339562622,1727695846086,-500.0,0.00013698,2]
[339562623,1727695846095,-500.0,0.00013698,2]
[339562627,1727695846284,-500.0,0.00013698,2]
[339562629,1727695846295,-500.0,0.00013698,2]
[339562630,1727695846305,-500.0,0.00013698,2]
[339562632,1727695846315,-500.0,0.00013698,2]
[339562633,1727695846324,-500.0,0.00013698,2]
[339562635,1727695846334,-679.03,0.00013698,2]
[339562636,1727695846343,-986.82,0.00013698,2]
[339562637,1727695846353,-500.0,0.00013698,2]
[339562638,1727695846362,-500.0,0.00013698,2]
[339562639,1727695846371,-500.0,0.00013698,2]
[339562640,1727695846381,-500.0,0.00013698,2]
[339562641,1727695846391,-500.0,0.00013698,2]
[339562642,1727695846401,-500.0,0.00013698,2]
[339562643,1727695846411,-500.0,0.00013698,2]
[339562644,1727695846420,-500.0,0.00013698,2]
[339562645,1727695846430,-500.0,0.00013698,2]
[339562646,1727695846439,-500.0,0.00013698,2]
[339562647,1727695846449,-500.0,0.00013698,2]
[339562648,1727695846458,-500.0,0.00013698,2]
[339562649,1727695846467,-972.36,0.00013698,2]
[339562650,1727695846477,-500.0,0.00013698,2]
[339562651,1727695846486,-500.0,0.00013698,2]
[339562652,1727695846496,-500.0,0.00013698,2]
[339562653,1727695846505,-500.0,0.00013698,2]
[339562654,1727695846515,-1181.41,0.00013698,2]
[339562655,1727695846524,-1300.25,0.00013698,2]
[339562656,1727695846533,-500.0,0.00013698,2]
[339562657,1727695846543,-500.0,0.00013698,2]
[339562658,1727695846553,-405.78422138,0.00013698,2]
[339562659,1727695846562,-776.03,0.00013698,2]
[339562660,1727695846572,-500.0,0.00013698,2]
[339562661,1727695846582,-500.0,0.00013698,2]
[339562662,1727695846591,-500.0,0.00013698,2]
[339562663,1727695846601,-1468.71,0.00013698,2]
[339562664,1727695846611,-500.0,0.00013698,2]
[339562665,1727695846620,-500.0,0.00013698,2]
[339562666,1727695846630,-500.0,0.00013698,2]
[339562667,1727695846640,-500.0,0.00013698,2]
[339562668,1727695846649,-500.0,0.00013698,2]
[339562669,1727695846659,-500.0,0.00013698,2]
[339562670,1727695846669,-500.0,0.00013698,2]
[339562671,1727695846679,-500.0,0.00013698,2]
[339562672,1727695846688,-500.0,0.00013698,2]
[339562673,1727695846698,-500.0,0.00013698,2]
[339562674,1727695846708,-1320.34,0.00013698,2]
[339562675,1727695846718,-500.0,0.00013698,2]
[339562676,1727695846727,-792.1,0.00013698,2]
[339562677,1727695846737,-500.0,0.00013698,2]
[339562678,1727695846747,-500.0,0.00013698,2]
[339562679,1727695846758,-500.0,0.00013698,2]
[339562680,1727695846767,-556.11,0.00013698,2]
[339562681,1727695846777,-500.0,0.00013698,2]
[339562682,1727695846787,-500.0,0.00013698,2]
[339562683,1727695846798,-500.0,0.00013698,2]
[339562684,1727695846807,-1506.41,0.00013698,2]
[339562685,1727695846817,-698.71,0.00013698,2]
[339562686,1727695846827,-500.0,0.00013698,2]
[339562687,1727695846837,-515.22253526,0.00013698,2]
[339562688,1727695846846,-20750.68,0.00013698,2]
[339562689,1727695846856,-500.0,0.00013698,2]
[339562690,1727695846865,-500.0,0.00013698,2]
[339562691,1727695846875,-398.87235149,0.00013698,2]
[339562692,1727695846886,-500.0,0.00013698,2]
[339562693,1727695846896,-500.0,0.00013698,2]
[339562694,1727695846905,-500.0,0.00013698,2]
[339562695,1727695846915,-500.0,0.00013698,2]
[339562696,1727695846924,-500.0,0.00013698,2]
[339562697,1727695846934,-500.0,0.00013698,2]
[339562698,1727695846944,-500.0,0.00013698,2]
[339562699,1727695846953,-500.0,0.00013698,2]
[339562700,1727695846963,-500.0,0.00013698,2]
[339562701,1727695846972,-3025.85,0.00013698,2]
[339562702,1727695846982,-500.0,0.00013698,2]
[339562703,1727695846991,-706.17,0.00013698,2]
[339562704,1727695847001,-1366.420017,0.00013699,2]
[339562705,1727695847010,-389.090767,0.00013699,2]
[339562706,1727695847020,-6983.9442893,0.00013699,2]
[339562707,1727695847030,-166.666666,0.00013699,2]
[339562708,1727695847039,-500.0,0.00013699,2]
[339562709,1727695847051,-500.0,0.00013699,2]
[339562710,1727695847060,-500.0,0.00013699,2]
[339562711,1727695847070,-500.0,0.00013699,2]
[339562712,1727695847080,-244.47144595,0.00013699,2]
[339562713,1727695847090,-502.0,0.00013699,2]
[339562714,1727695847100,-500.0,0.000137,2]
[339562715,1727695847110,-500.0,0.000137,2]
[339562716,1727695847120,-501.57471175,0.000137,2]
[339562717,1727695847129,-500.0,0.000137,2]
[339562718,1727695847139,-501.14209901,0.000137,2]
[339562719,1727695847148,-344.00890144,0.000137,2]
[339562720,1727695847158,-1000.0,0.000137,2]
[339562721,1727695847168,-1000.0,0.000137,2]
[339562722,1727695847177,-500.0,0.000137,2]
[339562723,1727695847187,-500.0,0.000137,2]
[339562724,1727695847197,-1000.0,0.000137,2]
[339562725,1727695847211,-500.0,0.00013725,2]
[339562726,1727695847221,-150.0,0.00013725,2]
[339562727,1727695847230,-150.0,0.00013725,2]
[339562728,1727695847240,-1500.0,0.00013727,2]
[339562729,1727695847251,-1500.0,0.00013727,2]
[339562730,1727695847260,-1500.0,0.00013727,2]
[339562731,1727695847269,-500.0,0.00013753,2]
[339562732,1727695847280,-150.0,0.00013753,2]
[339562733,1727695847289,-150.0,0.00013753,2]
[339562734,1727695847300,-2000.0,0.00013755,2]
[339562735,1727695847310,-2000.0,0.00013755,2]
[339562736,1727695847320,-2000.0,0.00013755,2]
[339562737,1727695847330,-500.0,0.0001378,2]
[339562738,1727695847339,-150.0,0.0001378,2]
[339562739,1727695847349,-241.30539446,0.0001378,2]
[339562740,1727695847359,-2403.72797516,0.00013782,2]
[339562741,1727695847369,-705.11952795,0.00013782,2]
[339562742,1727695847378,-2336.0584778,0.00013782,2]
[339562743,1727695847388,-150.112233,0.000138,2]
[339562744,1727695847398,-150.112233,0.000138,2]
[339562745,1727695847407,-500.0,0.00013808,2]
[339562746,1727695847416,-291.64125952,0.00013808,2]
[339562747,1727695847426,-500.0,0.00013835,2]
[339562748,1727695847436,-500.0,0.00013862,2]
[339562749,1727695847446,-500.0,0.0001389,2]
[339562750,1727695847456,-150.112233,0.000139,2]
[339562751,1727695847465,-150.112233,0.000139,2]
[339562752,1727695847475,-166.0,0.000139,2]
[339562753,1727695847484,-150.112233,0.000139,2]
[339562754,1727695847494,-150.112236,0.000139,2]
[339562755,1727695847503,-500.0,0.00013917,2]
[339562756,1727695847513,-500.0,0.00013945,2]
[339562757,1727695847522,-500.0,0.00013952,2]
[339562758,1727695847532,-500.0,0.00013952,2]
[339562759,1727695847541,-500.0,0.00013952,2]
[339562760,1727695847551,-500.0,0.00013961,2]
[339562761,1727695847560,-500.0,0.00013961,2]
[339562762,1727695847570,-500.0,0.00013961,2]
[339562763,1727695847579,-559.36275624,0.00013961,2]
[339562764,1727695847589,-500.0,0.00013961,2]
[339562765,1727695847598,-500.0,0.00013961,2]
[339562766,1727695847608,-500.0,0.00013961,2]
[339562767,1727695847618,-500.0,0.00013961,2]
[339562768,1727695847629,-500.0,0.00013961,2]
[339562769,1727695847639,-500.0,0.00013961,2]
[339562770,1727695847649,-1000.0,0.00013961,2]
[339562771,1727695847659,-500.0,0.00013971,2]
[339562772,1727695847669,-500.0,0.00013971,2]
[339562773,1727695847679,-500.0,0.00013971,2]
[339562774,1727695847688,-500.0,0.00013971,2]
[339562775,1727695847698,-500.0,0.00013971,2]
[339562776,1727695847708,-500.0,0.00013971,2]
[339562777,1727695847718,-500.0,0.00013971,2]
[339562778,1727695847728,-151.0,0.00013971,2]
[339562779,1727695847738,-151.0,0.00013971,2]
[339562780,1727695847749,-151.0,0.00013971,2]
[339562781,1727695847758,-1230.750696,0.00013971,2]
[339562782,1727695847768,-1230.750696,0.00013971,2]
[339562783,1727695847778,-5850.330687,0.00013971,2]
[339562784,1727695847787,-949.342855,0.00013971,2]
[339562785,1727695847798,-5850.330687,0.00013971,2]
[339562786,1727695847808,-949.342855,0.00013971,2]
[339562787,1727695847818,-223.450707,0.00013971,2]
[339562788,1727695847827,-223.450707,0.00013971,2]
[339562789,1727695847837,-151.0,0.00013971,2]
[339562790,1727695847846,-420.058658,0.00013971,2]
[339562791,1727695847856,-420.058658,0.00013971,2]
[339562792,1727695847865,-132012.73707971,0.00013972,2]
[339562793,1727695847874,-60496.10232375,0.00013972,2]
[339562794,1727695847883,-500.0,0.00013972,2]
[339562795,1727695847894,-500.0,0.00013972,2]
[339562796,1727695847903,-500.0,0.00013972,2]
[339562797,1727695847912,-500.0,0.00013972,2]
[339562798,1727695847922,-486.54599338,0.00013972,2]
[339562799,1727695847931,-500.0,0.00013972,2]
[339562800,1727695847941,-500.0,0.00013972,2]
[339562801,1727695847951,-500.0,0.00013972,2]
[339562802,1727695847960,-500.0,0.00013972,2]
[339562803,1727695847970,-500.0,0.00013972,2]
[339562804,1727695847979,-500.0,0.00013972,2]
[339562805,1727695847990,-500.0,0.00013972,2]
[339562806,1727695847999,-500.0,0.00013972,2]
[339562807,1727695848009,-2196.72,0.00013972,2]
[339562808,1727695848019,-605.21,0.00013972,2]
[339562809,1727695848029,-500.0,0.00013972,2]
[339562810,1727695848039,-500.0,0.00013972,2]
[339562811,1727695848050,-1407.65,0.00013972,2]
[339562812,1727695848059,-569.68,0.00013972,2]
[339562813,1727695848068,-500.0,0.00013972,2]
[339562814,1727695848078,-500.0,0.00013972,2]
[339562815,1727695848088,-500.0,0.00013972,2]
[339562816,1727695848097,-263.50113899,0.00013972,2]
[339562817,1727695848107,-500.0,0.00013972,2]
[339562818,1727695848116,-500.0,0.00013972,2]
[339562819,1727695848126,-500.0,0.00013972,2]
[339562820,1727695848136,-500.0,0.00013972,2]
[339562821,1727695848146,-500.0,0.00013972,2]
[339562822,1727695848156,-749.43,0.00013972,2]
[339562823,1727695848166,-500.0,0.00013972,2]
[339562824,1727695848176,-500.0,0.00013972,2]
[339562825,1727695848185,-1537.34,0.00013972,2]
[339562826,1727695848194,-500.0,0.00013972,2]
[339562827,1727695848208,-500.0,0.00013972,2]
[339562828,1727695848219,-500.0,0.00013972,2]
[339562829,1727695848229,-391.13010698,0.00013972,2]
[339562830,1727695848240,-645.58,0.00013972,2]
[339562831,1727695848250,-500.0,0.00013972,2]
[339562832,1727695848260,-500.0,0.00013972,2]
[339562833,1727695848270,-500.0,0.00013972,2]
[339562834,1727695848284,-251.47339405,0.00013972,2]
[339562835,1727695848296,-500.0,0.00013972,2]
[339562836,1727695848309,-500.0,0.00013972,2]
[339562837,1727695848319,-500.0,0.00013972,2]
[339562838,1727695848329,-500.0,0.00013972,2]
[339562839,1727695848339,-563.81,0.00013972,2]
[339562840,1727695848349,-500.0,0.00013972,2]
[339562841,1727695848359,-1000.73,0.00013972,2]
[339562842,1727695848369,-500.0,0.00013972,2]
[339562843,1727695848378,-500.0,0.00013972,2]
[339562844,1727695848388,-1087.61,0.00013972,2]
[339562845,1727695848398,-500.0,0.00013972,2]
[339562846,1727695848408,-500.0,0.00013972,2]
[339562847,1727695848418,-500.0,0.00013972,2]
[339562848,1727695848427,-500.0,0.00013972,2]
[339562849,1727695848437,-500.0,0.00013972,2]
[339562850,1727695848446,-554.68958422,0.00013972,2]
[339562851,1727695848456,-500.0,0.00013972,2]
[339562852,1727695848466,-511.00712291,0.00013972,2]
[339562853,1727695848476,-500.0,0.00013972,2]
[339562854,1727695848485,-500.0,0.00013972,2]
[339562855,1727695848495,-500.0,0.00013972,2]
[339562856,1727695848504,-500.0,0.00013972,2]
[339562857,1727695848514,-500.0,0.00013972,2]
[339562858,1727695848524,-500.0,0.00013972,2]
[339562859,1727695848534,-500.0,0.00013972,2]
[339562860,1727695848544,-500.0,0.00013972,2]
[339562861,1727695848554,-423.78479755,0.00013972,2]
[339562862,1727695848564,-500.0,0.00013972,2]
[339562863,1727695848573,-500.0,0.00013972,2]
[339562864,1727695848583,-764.84,0.00013972,2]
[339562865,1727695848592,-500.0,0.00013972,2]
[339562866,1727695848602,-500.0,0.00013972,2]
[339562867,1727695848611,-500.0,0.00013972,2]
[339562868,1727695848621,-500.0,0.00013972,2]
[339562869,1727695848631,-500.0,0.00013972,2]
[339562870,1727695848641,-500.0,0.00013972,2]
[339562871,1727695848650,-500.0,0.00013972,2]
[339562872,1727695848717,-500.0,0.00013972,2]
[339562873,1727695848727,-503.95,0.00013972,2]
[339562874,1727695848736,-500.0,0.00013972,2]
[339562875,1727695848746,-2029.36,0.00013972,2]
[339562876,1727695848755,-860.11,0.00013972,2]
[339562877,1727695848765,-500.0,0.00013972,2]
[339562878,1727695848774,-500.0,0.00013972,2]
[339562879,1727695848783,-500.0,0.00013972,2]
[339562880,1727695848793,-500.0,0.00013972,2]
[339562881,1727695848804,-158.15725883,0.00013972,2]
[339562882,1727695848814,-500.0,0.00013972,2]
[339562883,1727695848824,-500.0,0.00013972,2]
[339562884,1727695848833,-500.0,0.00013972,2]
[339562885,1727695848843,-500.0,0.00013972,2]
[339562886,1727695848852,-500.0,0.00013972,2]
[339562887,1727695848862,-500.0,0.00013972,2]
[339562888,1727695848871,-500.0,0.00013972,2]
[339562889,1727695848880,-500.0,0.00013972,2]
[339562890,1727695848890,-500.0,0.00013972,2]
[339562891,1727695848900,-500.0,0.00013972,2]
[339562892,1727695848909,-500.0,0.00013972,2]
[339562893,1727695848919,-480.34917451,0.00013972,2]
[339562894,1727695848927,-500.0,0.00013972,2]
[339562895,1727695848938,-649.05,0.00013972,2]
[339562896,1727695848948,-500.0,0.00013972,2]
[339562897,1727695848958,-530.69651116,0.00013972,2]
[339562898,1727695848967,-500.0,0.00013972,2]
[339562899,1727695848977,-500.0,0.00013972,2]
[339562900,1727695848987,-500.0,0.00013972,2]
[339562901,1727695848996,-500.0,0.00013972,2]
[339562902,1727695849006,-500.0,0.00013972,2]
[339562903,1727695849015,-771.8,0.00013972,2]
[339562904,1727695849025,-500.0,0.00013972,2]
[339562905,1727695849034,-500.0,0.00013972,2]
[339562906,1727695849046,-500.0,0.00013972,2]
[339562907,1727695849056,-507.37077679,0.00013972,2]
[339562908,1727695849067,-695.22,0.00013972,2]
[339562909,1727695849077,-444.71049233,0.00013972,2]
[339562910,1727695849662,-500.0,0.00013698,2]
[339562911,1727695849673,-587.64,0.00013698,2]
[339562912,1727695849682,-474.926626,0.00013971,2]
[339562913,1727695849692,-55.28950767,0.00013972,2]
[339562914,1727695849702,-500.0,0.00013972,2]
[339562915,1727695849711,-500.0,0.00013972,2]
[339562916,1727695849721,-500.0,0.00013972,2]
[339562917,1727695849731,-500.0,0.00013972,2]
[339562918,1727695849742,-500.0,0.00013972,2]
[339562919,1727695849752,-500.0,0.00013972,2]
[339562920,1727695849761,-500.0,0.00013972,2]
[339562921,1727695849770,-500.0,0.00013972,2]
[339562922,1727695849780,-500.0,0.00013972,2]
[339562923,1727695849790,-500.0,0.00013972,2]
[339562924,1727695849802,-500.0,0.00013972,2]
[339562925,1727695849811,-500.0,0.00013972,2]
[339562926,1727695849821,-500.0,0.00013972,2]
[339562927,1727695849830,-522.08,0.00013972,2]
[339562928,1727695849840,-354.24898084,0.00013972,2]
[339562929,1727695849850,-500.0,0.00013972,2]
[339562930,1727695849860,-518.28263371,0.00013972,2]
[339562931,1727695849870,-500.0,0.00013972,2]
[339562932,1727695849879,-500.0,0.00013972,2]
[339562933,1727695849890,-500.0,0.00013972,2]
[339562934,1727695849900,-657.35,0.00013972,2]
[339562935,1727695849909,-500.0,0.00013972,2]
[339562936,1727695849919,-500.0,0.00013972,2]
[339562937,1727695849930,-500.0,0.00013972,2]
[339562938,1727695849939,-684.88,0.00013972,2]
[339562939,1727695849948,-500.0,0.00013972,2]
[339562940,1727695849958,-500.0,0.00013972,2]
[339562941,1727695849968,-500.0,0.00013972,2]
[339562942,1727695849978,-500.0,0.00013972,2]
[339562943,1727695849987,-500.0,0.00013972,2]
[339562944,1727695849997,-500.0,0.00013972,2]
[339562945,1727695850007,-500.0,0.00013972,2]
[339562946,1727695850017,-500.0,0.00013972,2]
[339562947,1727695850027,-500.0,0.00013972,2]
[339562948,1727695850037,-500.0,0.00013972,2]
[339562949,1727695850048,-553.96214591,0.00013972,2]
[339562950,1727695850058,-500.0,0.00013972,2]
[339562951,1727695850067,-500.0,0.00013972,2]
[339562952,1727695850078,-500.0,0.00013972,2]
[339562953,1727695850087,-500.0,0.00013972,2]
[339562954,1727695850097,-500.0,0.00013972,2]
[339562955,1727695850106,-500.0,0.00013972,2]
[339562956,1727695850115,-1361.78,0.00013972,2]
[339562957,1727695850124,-500.0,0.00013972,2]
[339562958,1727695850134,-548.99,0.00013972,2]
[339562959,1727695850143,-583.65161787,0.00013972,2]
[339562960,1727695850152,-622.102635,0.00013972,2]
[339562961,1727695850162,-500.0,0.00013972,2]
[339562962,1727695850171,-500.0,0.00013972,2]
[339562963,1727695850181,-500.0,0.00013972,2]
[339562964,1727695850190,-500.0,0.00013972,2]
[339562965,1727695850202,-500.0,0.00013972,2]
[339562966,1727695850213,-500.0,0.00013972,2]
[339562967,1727695850226,-500.0,0.00013972,2]
[339562968,1727695850235,-500.0,0.00013972,2]
[339562969,1727695850245,-500.0,0.00013972,2]
[339562970,1727695850255,-500.0,0.00013972,2]
[339562971,1727695850264,-500.23031292,0.00013972,2]
[339562972,1727695850274,-500.0,0.00013972,2]
[339562973,1727695850284,-500.0,0.00013972,2]
[339562974,1727695850294,-500.0,0.00013972,2]
[339562975,1727695850306,-500.0,0.00013972,2]
[339562976,1727695850316,-623.09,0.00013972,2]
[339562977,1727695850326,-500.0,0.00013972,2]
[339562978,1727695850335,-500.0,0.00013972,2]
[339562979,1727695850344,-500.0,0.00013972,2]
[339562980,1727695850354,-500.0,0.00013972,2]
[339562981,1727695850363,-500.0,0.00013972,2]
[339562982,1727695850373,-500.0,0.00013972,2]
[339562983,1727695850383,-500.0,0.00013972,2]
[339562984,1727695850392,-500.0,0.00013972,2]
[339562985,1727695850402,-500.0,0.00013972,2]
[339562986,1727695850412,-500.0,0.00013972,2]
[339562987,1727695850422,-605.0,0.00013972,2]
[339562988,1727695850432,-1087.58,0.00013972,2]
[339562989,1727695850441,-500.0,0.00013972,2]
[339562990,1727695850451,-938.99,0.00013972,2]
[339562991,1727695850461,-500.0,0.00013972,2]
[339562992,1727695850471,-500.0,0.00013972,2]
[339562993,1727695850480,-500.0,0.00013972,2]
[339562994,1727695850490,-500.0,0.00013972,2]
[339562995,1727695850499,-500.0,0.00013972,2]
[339562996,1727695850509,-500.0,0.00013972,2]
[339562997,1727695850518,-595.86764458,0.00013972,2]
[339562998,1727695850527,-326.17756451,0.00013972,2]
[339562999,1727695850535,-500.0,0.00013972,2]
[339563000,1727695850544,-500.0,0.00013972,2]
[339563001,1727695850555,-500.0,0.00013972,2]
[339563002,1727695850564,-1549.59,0.00013972,2]
[339563003,1727695850573,-500.0,0.00013972,2]
[339563004,1727695850583,-500.0,0.00013972,2]
[339563005,1727695850592,-500.0,0.00013972,2]
[339563006,1727695850601,-500.0,0.00013972,2]
[339563007,1727695850611,-500.0,0.00013972,2]
[339563008,1727695850621,-500.0,0.00013972,2]
[339563009,1727695850631,-203.58518013,0.00013972,2]
[339563010,1727695850641,-524.23,0.00013972,2]
[339563011,1727695850652,-500.0,0.00013972,2]
[339563012,1727695850662,-500.0,0.00013972,2]
[339563013,1727695850671,-500.0,0.00013972,2]
[339563014,1727695850681,-500.0,0.00013972,2]
[339563015,1727695850692,-500.0,0.00013972,2]
[339563016,1727695850701,-500.0,0.00013972,2]
[339563017,1727695850710,-557.81,0.00013972,2]
[339563018,1727695850720,-582.20990287,0.00013972,2]
[339563019,1727695850729,-500.0,0.00013972,2]
[339563020,1727695850739,-888.35,0.00013972,2]
[339563021,1727695850749,-500.0,0.00013972,2]
[339563022,1727695850759,-488.65015113,0.00013972,2]
[339563023,1727695850769,-533.29,0.00013972,2]
[339563024,1727695850780,-500.0,0.00013972,2]
[339563025,1727695850790,-500.0,0.00013972,2]
[339563026,1727695850800,-500.0,0.00013972,2]
[339563027,1727695850811,-500.0,0.00013972,2]
[339563028,1727695850821,-500.0,0.00013972,2]
[339563029,1727695850830,-664.39,0.00013972,2]
[339563030,1727695850840,-1028.21,0.00013972,2]
[339563031,1727695850851,-500.0,0.00013972,2]
[339563032,1727695850860,-512.22572939,0.00013972,2]
[339563033,1727695850871,-576.6744168,0.00013972,2]
[339563034,1727695850881,-1228.99,0.00013972,2]
[339563035,1727695850891,-530.64572548,0.00013972,2]
[339563036,1727695850901,-500.0,0.00013972,2]
[339563037,1727695850911,-500.0,0.00013972,2]
[339563038,1727695850921,-500.0,0.00013972,2]
[339563039,1727695850931,-500.0,0.00013972,2]
[339563040,1727695850940,-500.0,0.00013972,2]
[339563041,1727695850950,-504.64391322,0.00013972,2]
[339563042,1727695850960,-1259.48,0.00013972,2]
[339563043,1727695850970,-500.0,0.00013972,2]
[339563044,1727695850979,-500.0,0.00013972,2]
[339563045,1727695850989,-500.0,0.00013972,2]
[339563046,1727695850999,-500.0,0.00013972,2]
[339563047,1727695851008,-389.33159179,0.00013972,2]
[339563048,1727695851019,-500.0,0.00013972,2]
[339563049,1727695851028,-500.0,0.00013972,2]
[339563050,1727695851038,-500.0,0.00013972,2]
[339563051,1727695851047,-500.0,0.00013972,2]
[339563052,1727695851059,-500.0,0.00013972,2]
[339563053,1727695851069,-500.0,0.00013972,2]
[339563054,1727695851079,-220.32834601,0.00013972,2]
[339563055,1727695851089,-500.0,0.00013972,2]
[339563056,1727695851100,-500.0,0.00013972,2]
[339563057,1727695851110,-500.0,0.00013972,2]
[339563058,1727695851120,-500.0,0.00013972,2]
[339563059,1727695851129,-500.0,0.00013972,2]
[339563060,1727695851139,-1139.47,0.00013972,2]
[339563061,1727695851148,-500.0,0.00013972,2]
[339563062,1727695851159,-500.0,0.00013972,2]
[339563063,1727695851168,-177.73754132,0.00013972,2]
[339563064,1727695851177,-508.3498178,0.00013972,2]
[339563065,1727695851186,-500.0,0.00013972,2]
[339563066,1727695851197,-1542.34,0.00013972,2]
[339563067,1727695851211,-500.0,0.00013972,2]
[339563068,1727695851222,-500.0,0.00013972,2]
[339563069,1727695851232,-500.0,0.00013972,2]
[339563070,1727695851243,-500.0,0.00013972,2]
[339563071,1727695851252,-500.0,0.00013972,2]
[339563072,1727695851263,-1868.82,0.00013972,2]
[339563073,1727695851274,-500.0,0.00013972,2]
[339563074,1727695851286,-500.0,0.00013972,2]
[339563075,1727695851295,-524.04,0.00013972,2]
[339563076,1727695851307,-500.0,0.00013972,2]
[339563077,1727695851316,-1250.75,0.00013972,2]
[339563078,1727695851326,-500.0,0.00013972,2]
[339563079,1727695851336,-500.0,0.00013972,2]
[339563080,1727695851345,-500.0,0.00013972,2]
[339563081,1727695851356,-500.0,0.00013972,2]
[339563082,1727695851365,-500.0,0.00013972,2]
[339563083,1727695851375,-500.0,0.00013972,2]
[339563084,1727695851386,-840.27,0.00013972,2]
[339563085,1727695851396,-658.55,0.00013972,2]
[339563086,1727695851406,-500.0,0.00013972,2]
[339563087,1727695851416,-500.0,0.00013972,2]
[339563088,1727695851427,-500.0,0.00013972,2]
[339563089,1727695851437,-500.0,0.00013972,2]
[339563090,1727695851447,-500.0,0.00013972,2]
[339563091,1727695851456,-500.0,0.00013972,2]
[339563092,1727695851466,-500.0,0.00013972,2]
[339563093,1727695851476,-500.0,0.00013972,2]
[339563094,1727695851486,-500.0,0.00013972,2]
[339563095,1727695851495,-609.6,0.00013972,2]
[339563096,1727695851505,-638.71,0.00013972,2]
[339563097,1727695851515,-523.19442121,0.00013972,2]
[339563098,1727695851525,-641.47923518,0.00013972,2]
[339563099,1727695851535,-500.0,0.00013972,2]
[339563100,1727695851545,-500.0,0.00013972,2]
[339563101,1727695851556,-500.0,0.00013972,2]
[339563102,1727695851566,-500.0,0.00013972,2]
[339563103,1727695851575,-500.0,0.00013972,2]
[339563104,1727695851585,-590.01,0.00013972,2]
[339563105,1727695851595,-505.87,0.00013972,2]
[339563106,1727695851605,-500.0,0.00013972,2]
[339563107,1727695851615,-500.0,0.00013972,2]